fUSD/lending_fUSD_20250423
["ID","MTS","AMOUNT","RATE_DAILY","PERIOD"]
[358684524,1745367034039,-500.0,0.00019873,2]
[358684525,1745367034048,-900.0,0.00019885,2]
[358684526,1745367034060,-300.0,0.00019885,2]
[358684527,1745367034070,-880.669,0.00019886,2]
[358684528,1745367034079,-6348.42697808,0.00019886,2]
[358684529,1745367034401,-6359.10452192,0.00019886,2]
[358684530,1745367034411,-807.78416851,0.00019886,2]
[358684531,1745367034421,-676.07297255,0.00019886,2]
[358684532,1745367034435,-1049.74975404,0.00019886,2]
[358684533,1745367034504,500.0,0.00046756,30]
[358684534,1745367034569,2437.75,0.00046756,30]
[358684535,1745367034635,875.8,0.00046756,30]
[358684536,1745367034658,-36.45027341,0.00019886,2]
[358684537,1745367034668,-162.719,0.00019886,2]
[358684538,1745367034679,-500.0,0.000199,2]
[358684539,1745367034688,-116.8489202,0.000199,2]
[358684540,1745367034700,-183.2367798,0.000199,2]
[358684541,1745367034709,-131.25480706,0.000199,2]
[358684542,1745367034722,-276.65889505,0.000199,2]
[358684543,1745367034733,-578.0878976,0.000199,2]
[358684544,1745367034746,-1739.3598138,0.000199,2]
[358684545,1745367034810,1010.51,0.00046756,120]
[358684546,1745367034881,500.0,0.00046756,30]
[358684547,1745367034941,961.32,0.00046756,120]
[358684548,1745367035005,2437.75,0.00046756,30]
[358684549,1745367035071,875.8,0.00046756,30]
[358684550,1745367035146,500.0,0.00046756,30]
[358684551,1745367035210,1010.51,0.00046756,120]
[358684552,1745367035272,500.0,0.00046756,30]
[358684553,1745367035336,961.32,0.00046756,120]
[358684554,1745367035406,2437.75,0.00046756,30]
[358684555,1745367035472,875.8,0.00046756,30]
[358684556,1745367035541,1010.51,0.00046756,120]
[358684557,1745367035603,500.0,0.00046756,30]
[358684558,1745367035671,500.0,0.00046756,30]
[358684559,1745367035730,961.32,0.00046756,120]
[358684560,1745367035795,2437.75,0.00046756,30]
[358684561,1745367035869,1010.51,0.00046756,120]
[358684562,1745367035938,500.0,0.00046756,30]
[358684563,1745367036004,2437.75,0.00046756,120]
[358684564,1745367036067,1010.51,0.00046756,120]
[358684565,1745367036145,500.0,0.00046756,30]
[358684566,1745367036206,500.0,0.00046756,30]
[358684567,1745367036275,1010.51,0.00046756,120]
[358684568,1745367036351,500.0,0.00046756,30]
[358684569,1745367036415,500.0,0.00046756,30]
[358684570,1745367036489,982.72,0.00046756,30]
[358684571,1745367036548,1010.51,0.00046756,120]
[358684572,1745367036620,875.8,0.00046756,120]
[358684573,1745367036680,500.0,0.00046756,30]
[358684574,1745367036740,961.32,0.00046756,120]
[358684575,1745367036801,982.72,0.00046756,30]
[358684576,1745367036865,1010.51,0.00046756,120]
[358684577,1745367036936,500.0,0.00046756,30]
[358684578,1745367036997,875.8,0.00046756,120]
[358684579,1745367037063,961.32,0.00046756,120]
[358684580,1745367037122,982.72,0.00046756,30]
[358684581,1745367037183,500.0,0.00046756,120]
[358684582,1745367037244,1010.51,0.00046756,120]
[358684583,1745367037310,982.72,0.00046756,30]
[358684584,1745367037373,961.4500988,0.00046756,120]
[358684587,1745367037438,1010.57836166,0.00046756,120]
[358684588,1745367037504,500.0,0.00046756,120]
[358684590,1745367037566,875.8,0.00046756,120]
[358684592,1745367037626,982.72,0.00046756,30]
[358684593,1745367037682,500.0,0.00046756,120]
[358684594,1745367037741,875.8,0.00046756,120]
[358684595,1745367037802,982.72,0.00046756,30]
[358684596,1745367037861,500.0,0.00046756,30]
[358684597,1745367037917,875.8,0.00046756,120]
[358684598,1745367037978,982.72,0.00046756,30]
[358684599,1745367038230,2437.75,0.00046756,120]
[358684600,1745367038291,500.0,0.00046756,30]
[358684601,1745367038350,875.8,0.00046756,120]
[358684602,1745367038415,550.34352571,0.00046756,120]
[358684605,1745367038477,982.72,0.00046756,30]
[358684612,1745367038544,2437.75,0.00046756,120]
[358684619,1745367038605,875.8,0.00046756,120]
[358684626,1745367038667,500.0,0.00046756,30]
[358684631,1745367038728,982.72,0.00046756,30]
[358684632,1745367038916,875.8,0.00046756,120]
[358684633,1745367039023,500.0,0.00046756,30]
[358684634,1745367039085,2437.75,0.00046756,120]
[358684635,1745367039152,982.72,0.00046756,30]
[358684636,1745367039214,875.8,0.00046756,120]
[358684637,1745367039287,500.0,0.00046756,120]
[358684639,1745367039363,982.72,0.00046756,120]
[358684640,1745367039430,875.8,0.00046756,120]
[358684641,1745367039499,2437.75,0.00046756,120]
[358684642,1745367039566,982.72,0.00046756,120]
[358684643,1745367039632,500.0,0.00046756,120]
[358684654,1745367039703,875.8,0.00046756,120]
[358684662,1745367039771,982.72,0.00046756,120]
[358684671,1745367039844,500.0,0.00046756,120]
[358684677,1745367039913,875.8,0.00046756,120]
[358684681,1745367040120,2437.75,0.00046756,120]
[358684682,1745367040202,982.72,0.00046756,120]
[358684683,1745367040265,500.0,0.00046756,120]
[358684684,1745367040325,875.8,0.00046756,120]
[358684685,1745367040393,2437.75,0.00046756,120]
[358684686,1745367040457,982.72,0.00046756,120]
[358684690,1745367040524,875.92116784,0.00046756,120]
[358684698,1745367040592,500.0,0.00046756,120]
[358684708,1745367040670,982.72,0.00046756,120]
[358684715,1745367040733,2437.75,0.00046756,120]
[358684721,1745367040803,500.0,0.00046756,120]
[358684722,1745367040865,982.72,0.00046756,120]
[358684723,1745367040924,2437.75,0.00046756,120]
[358684724,1745367040997,982.72,0.00046756,120]
[358684725,1745367041064,500.0,0.00046756,120]
[358684726,1745367041126,2437.75,0.00046756,120]
[358684727,1745367041189,982.72,0.00046756,120]
[358684728,1745367041254,500.0,0.00046756,120]
[358684729,1745367041314,2437.75,0.00046756,120]
[358684730,1745367041330,-1070.70831661,0.000199,2]
[358684731,1745367041351,-361.22342708,0.000199,2]
[358684732,1745367041367,-666.96794774,0.000199,2]
[358684733,1745367041456,500.0,0.00046756,30]
[358684734,1745367041478,-701.72,0.000199,2]
[358684735,1745367041490,-575.44595638,0.000199,2]
[358684736,1745367041501,-195.80873868,0.000199,2]
[358684737,1745367041511,-415.1027,0.000199,2]
[358684738,1745367041521,-219.15342759,0.000199,2]
[358684739,1745367041533,-10101.08032688,0.000199,2]
[358684740,1745367041546,-1590.42,0.000199,2]
[358684741,1745367041557,-1631.0,0.000199,2]
[358684742,1745367041568,-500.0,0.000199,2]
[358684743,1745367041650,2437.75,0.00046756,120]
[358684744,1745367041663,-325.24822827,0.000199,2]
[358684745,1745367041723,982.72,0.00046756,120]
[358684746,1745367041739,-935.97822,0.000199,2]
[358684747,1745367041752,-3623.60042211,0.000199,2]
[358684748,1745367041764,-16896.83004051,0.000199,2]
[358684749,1745367041773,-2047.44474745,0.000199,2]
[358684750,1745367041783,-807.78416851,0.000199,2]
[358684751,1745367041793,-2318.13371008,0.000199,2]
[358684752,1745367041803,-23900.0,0.00019905,2]
[358684753,1745367041813,-500.0,0.00019973,2]
[358684754,1745367041822,-206.82163871,0.00019973,2]
[358684755,1745367041831,-159.8465716,0.00019973,2]
[358684756,1745367041840,-500.0,0.00019973,2]
[358684757,1745367041850,-377.72894388,0.00019973,2]
[358684758,1745367041860,-3105.12776145,0.00019976,2]
[358684759,1745367041870,-200.0,0.00019981,2]
[358684760,1745367041879,-168990.7743026,0.00019986,2]
[358684761,1745367041890,-3433.1264315,0.00019986,2]
[358684762,1745367041899,-8015.1120251,0.00019986,2]
[358684763,1745367041909,-36999.0108245,0.00019986,2]
[358684764,1745367041919,-2513.5496382,0.00019986,2]
[358684765,1745367041928,-14504.9030344,0.00019986,2]
[358684766,1745367041938,-540.77960128,0.00019999,2]
[358684767,1745367041947,-151.0,0.00019999,2]
[358684768,1745367041956,-156.09039631,0.00019999,2]
[358684769,1745367041966,-151.7386289,0.00019999,2]
[358684770,1745367041976,-681.0,0.0002,2]
[358684771,1745367041986,-2744983.0538521,0.0002,2]
[358684772,1745367041998,-2482372.48999088,0.0002,2]
[358684773,1745367042009,-354.60144798,0.0002,2]
[358684774,1745367042070,596.99,0.00046756,120]
[358684775,1745367042086,-493.97951791,0.0002,2]
[358684776,1745367042099,-1142.92494503,0.0002,2]
[358684777,1745367042157,500.0,0.00046756,30]
[358684778,1745367042216,2437.75,0.00046756,120]
[358684779,1745367042277,982.72,0.00046756,120]
[358684780,1745367042346,500.0,0.00046756,30]
[358684781,1745367042412,2437.92612036,0.00046756,120]
[358684783,1745367042475,982.72,0.00046756,120]
[358684785,1745367042541,500.0,0.00046756,30]
[358684791,1745367042604,500.0,0.00046756,30]
[358684798,1745367042664,982.72,0.00046756,120]
[358684799,1745367042726,500.0,0.00046756,30]
[358684800,1745367042791,500.0,0.00046756,30]
[358684801,1745367042854,982.94348751,0.00046756,120]
[358684802,1745367042969,500.0,0.00046756,30]
[358684805,1745367043289,500.0,0.00046756,30]
[358684806,1745367043355,500.0,0.00046756,30]
[358684807,1745367043424,500.0,0.00046756,30]
[358684808,1745367043539,500.0,0.00046756,30]
[358684809,1745367043653,500.0,0.00046756,30]
[358684810,1745367043671,-2549.05889236,0.0002,2]
[358684811,1745367043684,-22943.78478299,0.0002,2]
[358684812,1745367043694,-250.0,0.0002,2]
[358684813,1745367043705,-250.0,0.0002,2]
[358684814,1745367043716,-250.0,0.0002,2]
[358684815,1745367043725,-250.0,0.0002,2]
[358684816,1745367043736,-250.0,0.0002,2]
[358684817,1745367043746,-250.0,0.0002,2]
[358684818,1745367043756,-250.0,0.0002,2]
[358684819,1745367043766,-250.0,0.0002,2]
[358684820,1745367043776,-250.0,0.0002,2]
[358684821,1745367043785,-250.0,0.0002,2]
[358684822,1745367043796,-289.2,0.0002,2]
[358684823,1745367043806,-216.82,0.00020055,2]
[358684824,1745367043815,-500.0,0.0002011,2]
[358684825,1745367043826,-163.03,0.00020485,2]
[358684826,1745367043836,-15362.56,0.00020548,2]
[358684827,1745367043846,-166.66,0.00020766,2]
[358684828,1745367043857,-250.0,0.00021,2]
[358684829,1745367043867,-500.0,0.00021096,2]
[358684830,1745367043877,-707.9,0.0002137,2]
[358684831,1745367043887,-200.0,0.00021523,2]
[358684832,1745367043902,-9163.16,0.00021529,2]
[358684833,1745367043912,-1000.0,0.00021554,2]
[358684834,1745367043922,-250.0,0.00021615,2]
[358684835,1745367043932,-166.66,0.00021623,2]
[358684836,1745367043942,-1754.62,0.00021629,2]
[358684837,1745367043953,-250.0,0.00021655,2]
[358684838,1745367043963,-420.0,0.00021655,2]
[358684839,1745367043974,-1260.0,0.00021759,2]
[358684840,1745367043984,-150.0,0.0002178,2]
[358684841,1745367043994,-150.0,0.0002178,2]
[358684842,1745367044005,-1516.66,0.00021914,2]
[358684843,1745367044014,-304.71,0.00022,2]
[358684844,1745367044025,-163.03,0.00022061,2]
[358684845,1745367044035,-167.62,0.00022142,2]
[358684846,1745367044045,-166.66,0.0002248,2]
[358684847,1745367044055,-166.66,0.00022501,2]
[358684848,1745367044065,-226.93,0.00022998,2]
[358684849,1745367044075,-300.0,0.00023,2]
[358684850,1745367044085,-200.0,0.00023,2]
[358684851,1745367044095,-166.66,0.00023337,2]
[358684852,1745367044105,-587.0,0.00023583,2]
[358684853,1745367044115,-160.21,0.00023632,2]
[358684854,1745367044125,-163.03,0.00023637,2]
[358684855,1745367044135,-1763.0,0.0002381,2]
[358684856,1745367044146,-320.08,0.00023836,2]
[358684857,1745367044156,-3955.46,0.00024174,2]
[358684858,1745367044166,-1516.66,0.00024178,2]
[358684859,1745367044177,-166.66,0.00024193,2]
[358684860,1745367044187,-1000.0,0.00024248,2]
[358684861,1745367044198,-1431.67828864,0.00024403,2]
[358684862,1745367044208,-1000.0,0.00024658,2]
[358684863,1745367044217,-1000.0,0.00024658,2]
[358684864,1745367044227,-500.0,0.00024773,2]
[358684865,1745367044237,-500.0,0.00024773,2]
[358684866,1745367044247,-507.25495501,0.00024773,2]
[358684867,1745367044257,-500.0,0.00024799,2]
[358684868,1745367044266,-500.0,0.00024799,2]
[358684869,1745367044276,-500.0,0.00024799,2]
[358684870,1745367044286,-500.0,0.00024799,2]
[358684871,1745367044296,-151.0,0.000248,7]
[358684872,1745367044306,-151.0,0.000248,7]
[358684873,1745367044315,-151.0,0.000248,7]
[358684874,1745367044325,-625979.624005,0.000248,3]
[358684875,1745367044335,-500.0,0.00024873,2]
[358684876,1745367044345,-500.0,0.00024873,2]
[358684877,1745367044360,-500.0,0.00024873,2]
[358684878,1745367044370,-500.0,0.00024873,2]
[358684879,1745367044380,-500.0,0.00024899,2]
[358684880,1745367044390,-500.0,0.00024899,2]
[358684881,1745367044402,-151.0,0.000249,7]
[358684882,1745367044412,-129873.762887,0.000249,3]
[358684883,1745367044423,-350.0,0.00025,2]
[358684884,1745367044433,-163.03,0.00025213,2]
[358684885,1745367044445,-1000.0,0.00025452,2]
[358684886,1745367044456,-823.0,0.00025682,2]
[358684887,1745367044466,-167.62,0.00025797,2]
[358684888,1745367044476,-250.0,0.00025964,2]
[358684889,1745367044486,-2469.0,0.00026054,2]
[358684890,1745367044496,-1516.66,0.00026442,2]
[358684891,1745367044505,-163.03,0.00026788,2]
[358684892,1745367044517,-1000.0,0.00026942,2]
[358684893,1745367044527,-400.0,0.00027,2]
[358684894,1745367044537,-163.82,0.00027397,2]
[358684895,1745367044547,-498.98,0.00027397,2]
[358684896,1745367044558,-1130.0,0.000274,2]
[358684897,1745367044567,-337.0,0.000274,2]
[358684898,1745367044578,-1152.0,0.00027968,2]
[358684899,1745367044590,-216.82,0.00028077,2]
[358684900,1745367044600,-163.03,0.00028364,2]
[358684901,1745367044610,-3457.0,0.0002851,2]
[358684902,1745367044621,-1516.66,0.00028706,2]
[358684903,1745367044631,-450.0,0.00029,2]
[358684904,1745367044642,-161.47,0.0002963,2]
[358684905,1745367044652,-1000.0,0.00029636,2]
[358684906,1745367044662,-876.0,0.00029733,2]
[358684907,1745367044672,-865.0,0.00029733,2]
[358684908,1745367044682,-1523.373,0.00029733,2]
[358684909,1745367044691,-3981.0,0.00029733,2]
[358684910,1745367044701,-1131.0,0.00029733,2]
[358684911,1745367044711,-247.973,0.00029768,2]
[358684912,1745367044721,-153.739,0.00029768,2]
[358684913,1745367044731,-916.0,0.00029768,2]
[358684914,1745367044740,-1333.0,0.00029768,2]
[358684915,1745367044750,-153.889,0.00029768,2]
[358684916,1745367044760,-2057.0,0.00029768,2]
[358684917,1745367044770,-795.0,0.00029768,2]
[358684918,1745367044780,-361.799,0.00029768,2]
[358684919,1745367044791,-1443.0,0.00029768,2]
[358684920,1745367044802,-1284.0,0.00029768,2]
[358684921,1745367044812,-547.0,0.00029768,2]
[358684922,1745367044822,-4164.0,0.00029768,2]
[358684923,1745367044832,-157.5530901,0.0003,20]
[358684924,1745367044842,-444.96553724,0.00030028,2]
[358684925,1745367044852,-610.0,0.00030137,2]
[358684926,1745367044862,-1000.0,0.00030252,5]
[358684927,1745367044871,-643.34112161,0.00030252,5]
[358684928,1745367044882,-1020.94346662,0.00030352,5]
[358684929,1745367044892,-1000.0,0.00030352,5]
[358684930,1745367044902,-1613.0,0.00030458,2]
[358684931,1745367044912,-1516.66,0.00030969,2]
[358684932,1745367044923,-500.0,0.00031,2]
[358684933,1745367044932,-4640.0,0.00031197,3]
[358684934,1745367044942,-1000.0,0.0003233,2]
[358684935,1745367044952,-876.0,0.00032733,2]
[358684936,1745367044962,-3981.0,0.00032733,2]
[358684937,1745367044972,-1131.0,0.00032733,2]
[358684938,1745367044983,-150.0,0.00032768,2]
[358684939,1745367044993,-371.0,0.00032768,2]
[358684940,1745367045003,-1333.0,0.00032768,2]
[358684941,1745367045013,-2057.0,0.00032768,2]
[358684942,1745367045023,-795.0,0.00032768,2]
[358684943,1745367045034,-1443.0,0.00032768,2]
[358684944,1745367045044,-1284.0,0.00032768,2]
[358684945,1745367045054,-327.736,0.00032768,2]
[358684946,1745367045064,-4164.0,0.00032768,2]
[358684947,1745367045074,-151.69,0.00032877,2]
[358684948,1745367045084,-163.82,0.00032877,2]
[358684949,1745367045094,-300.0,0.00032877,5]
[358684950,1745367045104,-1130.03719845,0.000329,2]
[358684951,1745367045115,-550.0,0.00033,2]
[358684952,1745367045125,-731.0,0.00033169,3]
[358684953,1745367045135,-1516.66,0.00033233,2]
[358684954,1745367045145,-150.0,0.00034548,10]
[358684955,1745367045156,-600.0,0.00035,2]
[358684956,1745367045165,-154.43774,0.00035,3]
[358684957,1745367045176,-320.08,0.00035068,2]
[358684958,1745367045186,-1140.43779743,0.00035471,5]
[358684959,1745367045196,-1516.66,0.00035497,2]
[358684960,1745367045207,-150.0,0.00035616,5]
[358684961,1745367045216,-876.0,0.00035733,2]
[358684962,1745367045227,-3981.0,0.00035733,2]
[358684963,1745367045237,-1131.0,0.00035733,2]
[358684964,1745367045247,-150.0,0.00035768,2]
[358684965,1745367045257,-1333.0,0.00035768,2]
[358684966,1745367045267,-795.0,0.00035768,2]
[358684967,1745367045277,-1284.0,0.00035768,2]
[358684968,1745367045287,-500.0,0.00035929,10]
[358684969,1745367045297,-500.0,0.00035929,10]
[358684970,1745367045307,-120880.39053167,0.0003593,7]
[358684971,1745367045317,-71110.32742595,0.0003593,7]
[358684972,1745367045327,-650.0,0.00037,2]
[358684973,1745367045337,-2318.13371006,0.000373,2]
[358684974,1745367045347,-500.0,0.00037624,2]
[358684975,1745367045358,-500.0,0.00037624,2]
[358684978,1745367045369,-500.0,0.00037624,2]
[358684980,1745367045379,-500.0,0.00037624,2]
[358684981,1745367045389,-500.0,0.00037624,2]
[358684982,1745367045400,-413.67834583,0.00037624,2]
[358684983,1745367045410,-1516.66,0.00037761,2]
[358684984,1745367045421,-269.8515009,0.00038356,5]
[358684985,1745367045432,-1311.08,0.000384,14]
[358684986,1745367045442,-166.22,0.000384,14]
[358684987,1745367045452,-876.0,0.00038733,2]
[358684988,1745367045463,-2312.652,0.00038733,2]
[358684989,1745367045473,-927.892,0.00038733,2]
[358684990,1745367045483,-889.225,0.00038768,2]
[358684991,1745367045493,-795.0,0.00038768,2]
[358684992,1745367045503,-228.568,0.00038768,2]
[358684993,1745367045512,-151.02,0.000389,2]
[358684994,1745367045522,-151.02,0.000389,2]
[358684995,1745367045532,-151.02,0.000389,2]
[358684996,1745367045542,-151.02,0.000389,2]
[358684997,1745367045553,-151.02,0.000389,2]
[358684998,1745367045563,-151.02,0.000389,2]
[358684999,1745367045573,-151.02,0.000389,2]
[358685000,1745367045582,-151.02,0.000389,2]
[358685001,1745367045592,-151.02,0.000389,2]
[358685002,1745367045602,-151.02,0.000389,2]
[358685003,1745367045612,-151.02,0.000389,2]
[358685004,1745367045622,-151.02,0.000389,2]
[358685005,1745367045632,-151.02,0.000389,2]
[358685006,1745367045641,-151.02,0.000389,2]
[358685007,1745367045651,-151.02,0.000389,2]
[358685008,1745367045661,-151.02,0.000389,2]
[358685009,1745367045671,-151.02,0.000389,2]
[358685010,1745367045681,-151.02,0.000389,2]
[358685011,1745367045691,-151.02,0.000389,2]
[358685012,1745367045701,-151.02,0.000389,2]
[358685013,1745367045711,-151.02,0.000389,2]
[358685014,1745367045721,-151.02,0.000389,2]
[358685015,1745367045731,-151.02,0.000389,2]
[358685016,1745367045741,-151.02,0.000389,2]
[358685017,1745367045751,-151.02,0.000389,2]
[358685018,1745367045761,-151.02,0.000389,2]
[358685019,1745367045772,-151.02,0.000389,2]
[358685020,1745367045783,-151.02,0.000389,2]
[358685021,1745367045796,-151.02,0.000389,2]
[358685022,1745367045806,-151.02,0.000389,2]
[358685023,1745367045817,-151.02,0.000389,2]
[358685024,1745367045827,-151.02,0.000389,2]
[358685025,1745367045838,-151.02,0.000389,2]
[358685026,1745367045848,-151.02,0.000389,2]
[358685027,1745367045858,-151.02,0.000389,2]
[358685028,1745367045868,-151.02,0.000389,2]
[358685029,1745367045878,-151.02,0.000389,2]
[358685030,1745367045888,-151.02,0.000389,2]
[358685031,1745367045898,-151.02,0.000389,2]
[358685032,1745367045909,-151.02,0.000389,2]
[358685033,1745367045921,-151.02,0.000389,2]
[358685034,1745367045932,-151.02,0.000389,2]
[358685035,1745367045943,-151.02,0.000389,2]
[358685036,1745367045953,-151.02,0.000389,2]
[358685037,1745367045963,-151.02,0.000389,2]
[358685038,1745367045974,-151.02,0.000389,2]
[358685039,1745367045984,-151.02,0.000389,2]
[358685040,1745367045994,-151.02,0.000389,2]
[358685041,1745367046004,-151.02,0.000389,2]
[358685042,1745367046014,-151.02,0.000389,2]
[358685043,1745367046024,-151.02,0.000389,2]
[358685044,1745367046034,-151.02,0.000389,2]
[358685045,1745367046045,-151.02,0.000389,2]
[358685046,1745367046055,-151.02,0.000389,2]
[358685047,1745367046065,-700.0,0.00039,2]
[358685048,1745367046074,-514.25107054,0.00039726,15]
[358685049,1745367046085,-589.74599636,0.00039726,15]
[358685050,1745367046095,-589.74599636,0.00039726,15]
[358685051,1745367046106,-589.74599636,0.00039726,15]
[358685052,1745367046116,-589.74599636,0.00039726,15]
[358685053,1745367046127,-589.74599636,0.00039726,15]
[358685054,1745367046138,-589.74599636,0.00039726,15]
[358685055,1745367046148,-589.74599636,0.00039726,15]
[358685056,1745367046158,-589.74599636,0.00039726,15]
[358685057,1745367046167,-589.74599636,0.00039726,15]
[358685058,1745367046178,-589.74599636,0.00039726,15]
[358685059,1745367046190,-589.74599636,0.00039726,15]
[358685060,1745367046200,-589.74599636,0.00039726,15]
[358685061,1745367046210,-589.74599636,0.00039726,15]
[358685062,1745367046219,-589.74599636,0.00039726,15]
[358685063,1745367046229,-589.74599636,0.00039726,15]
[358685064,1745367046239,-589.74599636,0.00039726,15]
[358685065,1745367046249,-589.74599636,0.00039726,15]
[358685066,1745367046259,-589.74599636,0.00039726,15]
[358685067,1745367046270,-589.74599636,0.00039726,15]
[358685068,1745367046280,-589.74599636,0.00039726,15]
[358685069,1745367046292,-589.74599636,0.00039726,15]
[358685070,1745367046302,-589.74599636,0.00039726,15]
[358685071,1745367046312,-589.74599636,0.00039726,15]
[358685072,1745367046322,-589.74599636,0.00039726,15]
[358685073,1745367046332,-589.74599636,0.00039726,15]
[358685074,1745367046342,-589.74599636,0.00039726,15]
[358685075,1745367046353,-589.74599636,0.00039726,15]
[358685076,1745367046364,-589.74599636,0.00039726,15]
[358685077,1745367046374,-589.74599636,0.00039726,15]
[358685078,1745367046385,-589.74599636,0.00039726,15]
[358685079,1745367046394,-589.74599636,0.00039726,15]
[358685080,1745367046406,-589.74599636,0.00039726,15]
[358685081,1745367046415,-589.74599636,0.00039726,15]
[358685082,1745367046425,-589.74599636,0.00039726,15]
[358685083,1745367046436,-589.74599636,0.00039726,15]
[358685084,1745367046447,-589.74599636,0.00039726,15]
[358685085,1745367046456,-589.74599636,0.00039726,15]
[358685086,1745367046466,-589.74599636,0.00039726,15]
[358685087,1745367046476,-589.74599636,0.00039726,15]
[358685088,1745367046486,-589.74599636,0.00039726,15]
[358685089,1745367046495,-589.74599636,0.00039726,15]
[358685090,1745367046505,-589.74599636,0.00039726,15]
[358685091,1745367046515,-589.74599636,0.00039726,15]
[358685092,1745367046524,-589.74599636,0.00039726,15]
[358685093,1745367046534,-589.74599636,0.00039726,15]
[358685094,1745367046544,-589.74599636,0.00039726,15]
[358685095,1745367046554,-589.74599636,0.00039726,15]
[358685096,1745367046564,-589.74599636,0.00039726,15]
[358685097,1745367046574,-589.74599636,0.00039726,15]
[358685098,1745367046584,-589.74599636,0.00039726,15]
[358685099,1745367046594,-589.74599636,0.00039726,15]
[358685100,1745367046604,-589.74599636,0.00039726,15]
[358685101,1745367046615,-589.74599636,0.00039726,15]
[358685102,1745367046627,-589.74599636,0.00039726,15]
[358685103,1745367046637,-589.74599636,0.00039726,15]
[358685104,1745367046648,-585.67878259,0.00039726,15]
[358685105,1745367046657,-585.67878259,0.00039726,15]
[358685106,1745367046666,-585.67878259,0.00039726,15]
[358685107,1745367046676,-585.67878259,0.00039726,15]
[358685108,1745367046685,-585.67878259,0.00039726,15]
[358685109,1745367046695,-585.67878259,0.00039726,15]
[358685110,1745367046705,-585.67878259,0.00039726,15]
[358685111,1745367046716,-585.67878259,0.00039726,15]
[358685112,1745367046726,-585.67878259,0.00039726,15]
[358685113,1745367046735,-585.67878259,0.00039726,15]
[358685114,1745367046745,-585.67878259,0.00039726,15]
[358685115,1745367046755,-585.67878259,0.00039726,15]
[358685116,1745367046765,-585.67878259,0.00039726,15]
[358685117,1745367046775,-585.67878259,0.00039726,15]
[358685118,1745367046785,-585.67878259,0.00039726,15]
[358685119,1745367046795,-585.67878259,0.00039726,15]
[358685120,1745367046805,-585.67878259,0.00039726,15]
[358685121,1745367046815,-585.67878259,0.00039726,15]
[358685122,1745367046825,-578.57964583,0.00039726,15]
[358685123,1745367046835,-578.57964583,0.00039726,15]
[358685124,1745367046845,-578.57964583,0.00039726,15]
[358685125,1745367046855,-578.57964583,0.00039726,15]
[358685126,1745367046865,-578.57964583,0.00039726,15]
[358685127,1745367046874,-578.57964583,0.00039726,15]
[358685128,1745367046884,-578.57964583,0.00039726,15]
[358685129,1745367046894,-578.57964583,0.00039726,15]
[358685130,1745367046903,-578.57964583,0.00039726,15]
[358685131,1745367046913,-578.57964583,0.00039726,15]
[358685132,1745367046922,-578.57964583,0.00039726,15]
[358685133,1745367046932,-355.68516749,0.0004,5]